Cogmind - Beta 14 @@@ ROGUE MODE // 2025.01.18 @ 18:24:53 Player: Byrnorthil Result: Destroyed by A5 with Heavy Tesla Rifle Performance ------------- Evolutions (6) 3000 Regions Visited (13) 2600 Robots Destroyed (118) 590 Value Destroyed (4678) 4678 Prototype IDs (45) 900 Alien Tech Used (3) 600 Bonus (7192) 7192 TOTAL SCORE: 19560 Bonus ------- High Alert Combat Kills 318 Follower Combat Kills 274 Registered with UFD 300 Met Zhirov 300 Found Hidden Lab 3000 Used Core Reset Matrix 3000 Cogmind --------- Core Integrity 0/1150 Matter 72/300 Energy 96/100 System Corruption 4% Temperature Cool (0) Movement Core (150) Ox2 Location -4/Lab Parts ------- > --- POWER (1) -------- (None) > --- PROPULSION (5) --- (None) > --- UTILITY (9) ------ Advanced Terrain Scan Processor 0b10 Decoder Chip [Looter] > --- WEAPON (4) ------- Hypervelocity Railgun > --- INVENTORY (5) ---- Light Antimatter Reactor Potential Cannon Hypervelocity Railgun Peak State ------------ > --- POWER ------------ Heavy Antimatter Reactor > --- PROPULSION ------- Flexi-carbon Leg Myomer Leg Myomer Leg Myomer Leg Myomer Leg > --- UTILITY ---------- High-capacity Storage Unit Experimental Sensor Array Advanced Signal Interpreter Advanced Terrain Scan Processor 0b10 Decoder Chip [Looter] Advanced Melee Analysis Suite Improved Target Analyzer Experimental Weapon Shielding Advanced EM Disruption Field > --- WEAPON ----------- Micro-nuke Launcher Chainsword Chainsword Great Axe > --- INVENTORY -------- Micro Fission Core Light Antimatter Reactor Light Antimatter Reactor Antigrav System Experimental Cooling System Experimental Optical Array Long-range Terrain Scanner Precision Energy Filter Advanced Transmission Jammer Advanced ECM Suite Improved Reaction Control System Advanced EM Disruption Field Advanced System Shield Authchip [Device] Transdimensional Reconstructor Field Laser Plasma Rifle Subdweller Shrapnel Launcher Long-range Missile Launcher Katana [Rating: 120] Favorites ----------- Power Subdweller Power Source Engine Subdweller Power Source Power Core Micro Fission Core Reactor Heavy Antimatter Reactor Propulsion Flexi-carbon Leg Treads Light Treads Leg Flexi-carbon Leg Utility High-capacity Storage Unit Device Microactuators Storage High-capacity Storage Unit Processor Improved Signal Interpreter Protection Makeshift Light Armor Plating Weapon Chainsword Energy Gun Gatling Laser Energy Cannon Potential Cannon Ballistic Gun Assault Rifle Launcher Subdweller Shrapnel Launcher Special Weapon Mining Laser Impact Weapon Thunder Hammer Slashing Weapon Chainsword Build | -11 -10 -10 -10 -7 -7 -5 -5 -5 -5 -4 -4 -4 -4 ------- Run | Yrd Mat Min Sub Rec Scr Fac Upp Upp Zhi Pro Fac Arm Lab Slots Evolved 12 | . . . . . . 10 . . . . 2 . . Power . | . . . . . . . . . . . . . . Propulsion 3 | . . . . . . 2 . . . . 1 . . Utility 7 | . . . . . . 6 . . . . 1 . . Weapon 2 | . . . . . . 2 . . . . . . . Parts Attached 215 | 7 17 . 14 8 6 46 10 9 5 25 65 1 2 Power 14 | 1 1 . 3 . 1 5 . 1 . . 2 . . Engine 6 | 1 1 . 1 . 1 2 . . . . . . . Core 6 | . . . 2 . . 3 . 1 . . . . . Reactor 2 | . . . . . . . . . . . 2 . . Propulsion 44 | 2 2 . 2 2 2 8 1 2 . 6 17 . . Treads 7 | . 2 . 2 2 . . . . . . 1 . . Leg 37 | 2 . . . . 2 8 1 2 . 6 16 . . Wheel . | . . . . . . . . . . . . . . Hover . | . . . . . . . . . . . . . . Flight . | . . . . . . . . . . . . . . Utility 105 | 2 5 . 4 2 1 26 8 4 5 13 35 . . Device 78 | 1 1 . 3 . . 22 6 3 2 11 29 . . Storage 7 | 1 2 . . 1 1 1 . . 1 . . . . Processor 8 | . . . . . . 2 2 1 . 1 2 . . Hackware . | . . . . . . . . . . . . . . Protection 12 | . 2 . 1 1 . 1 . . 2 1 4 . . Artifact . | . . . . . . . . . . . . . . Weapon 52 | 2 9 . 5 4 2 7 1 2 . 6 11 1 2 Energy Gun 12 | . 3 . 4 3 . . . . . . 2 . . Energy Cannon 1 | . . . . . . . . . . . . . 1 Ballistic Gun 10 | 2 3 . . . . . . . . . 3 1 1 Ballistic Cannon . | . . . . . . . . . . . . . . Launcher 6 | . . . . . . 1 . 1 . 2 2 . . Special Weapon 4 | . 3 . 1 . . . . . . . . . . Impact Weapon 1 | . . . . . . 1 . . . . . . . Slashing Weapon 18 | . . . . 1 2 5 1 1 . 4 4 . . Piercing Weapon . | . . . . . . . . . . . . . . Special Melee Weapon . | . . . . . . . . . . . . . . Unidentified Prototypes 11 | . . . . . . 1 . . 3 . 4 1 2 Parts Lost 48 | . 3 . 5 . . 2 3 . . 3 32 . . Power 4 | . 1 . 2 . . . . . . . 1 . . Propulsion 14 | . . . 1 . . 1 . . . . 12 . . Utility 16 | . . . 1 . . . 2 . . 1 12 . . Weapon 14 | . 2 . 1 . . 1 1 . . 2 7 . . Highest Loss Streak 20 | . 1 . 2 . . 1 3 . . 3 20 . . To Critical Strikes 2 | . . . . . . . . . . . 2 . . Average Slot Usage (%) 93 | . 99 100 99 99 87 93 93 94 95 99 97 11 11 Engine 8 | . 13 14 7 14 12 2 . . . . . . . Core 1 | . . . 6 . . 2 5 5 5 5 1 . . Treads 8 | . 16 28 27 28 5 . . . . . . . . Leg 18 | . 11 . . . 22 22 23 23 23 23 24 . . Device 8 | . 10 . 10 . . 28 23 18 14 16 16 . . Storage 10 | . 14 14 14 14 14 5 5 5 5 5 4 . . Processor 4 | . . . . . . 5 10 15 17 17 21 10 10 Protection 4 | . 3 14 2 14 3 . . . 4 5 2 . . Energy Gun 12 | . 11 28 25 25 18 . . . . . . . . Ballistic Gun 1 | . 16 . . . . . . . . . . 1 1 Slashing Weapon 11 | . . . . 2 9 22 22 22 23 21 19 . . Peak Build Rating 120 | 7 10 10 19 22 36 88 85 88 91 94 120 20 32 Average Rating 46 | 5 8 10 14 21 31 79 82 87 88 91 103 13 14 On Entrance 40 | . 7 10 10 16 22 36 81 85 88 91 94 12 12 Naked Turns . | . . . . . . . . . . . . . . Heaviest Build 218 | 15 31 31 35 57 218 82 69 71 67 74 86 . . Greatest Support 120 | 20 40 40 40 40 40 80 72 72 68 77 120 3 3 Greatest Overweight (x) 20 | . . . 1 1 5 1 1 . . 1 20 . . Average Overweight (x) . | . . . . . 3 . . . . . . . . Largest Inventory Capacity 35 | 8 15 15 15 20 35 35 20 20 20 20 20 5 5 Average Capacity 23 | 7 11 15 15 18 30 20 20 20 20 20 19 5 5 Most Carried 35 | 6 13 15 15 20 35 34 20 20 20 20 20 5 5 Average Carried 21 | 3 9 13 14 18 28 19 19 19 19 19 18 4 4 Final Capacity 35 | 8 15 15 15 20 35 20 20 20 20 20 5 5 5 Final Carried 35 | 6 13 15 15 20 35 20 20 20 20 18 5 4 4 Class Distribution -------------------- 48% | Commander-Mutant 30% | Gladiator 13% | Mutant 3% | Scavenger-Mutant Dominant Class ---------------- Mutant | -10/Materials Mutant | -10/Mines Scavenger-Mutant | -10/Subcaves Commander-Mutant | -7/Recycling Commander-Mutant | -7/Scraptown Gladiator | -5/Factory Gladiator | -5/Upper Caves Gladiator | -5/Upper Caves Gladiator | -5/Zhirov Gladiator | -4/Proximity Caves Gladiator | -4/Factory Gladiator | -4/Armory Gladiator | -4/Lab Resources | -11 -10 -10 -10 -7 -7 -5 -5 -5 -5 -4 -4 -4 -4 ----------- Run | Yrd Mat Min Sub Rec Scr Fac Upp Upp Zhi Pro Fac Arm Lab Matter Collected 2658 | 238 466 . 115 80 30 414 180 170 . 317 648 . . Remotely . | . . . . . . . . . . . . . . Salvage Created 5254 | 90 610 90 201 349 . 986 321 458 . 474 1675 . . Parts 250 | 12 39 2 12 16 . 42 15 9 . 21 82 . . Haulers Intercepted 7 | . 2 . . . . 2 . 1 . . 2 . . Recyclers Shooed 5 | . . . . . . 3 . . . . 2 . . Parts Field Recycled . | . . . . . . . . . . . . . . Retrieved Matter . | . . . . . . . . . . . . . . Parts Self-Destructed 85 | . . . 16 . . . 46 8 . 15 . . . Prevented 2 | . . . . . . . 2 . . . . . . Kills | -11 -10 -10 -10 -7 -7 -5 -5 -5 -5 -4 -4 -4 -4 ------- Run | Yrd Mat Min Sub Rec Scr Fac Upp Upp Zhi Pro Fac Arm Lab Combat Hostiles Destroyed 86 | . 13 2 5 3 . 8 7 6 . 11 31 . . Melee 43 | . . . . . . 8 7 1 . 7 20 . . Guns 23 | . 13 1 5 3 . . . . . . 1 . . AOE 19 | . . . . . . . . 5 . 4 10 . . Classes Destroyed 18 | 1 5 . 3 2 . 3 1 1 . 2 . . . Worker 4 | . 3 . . . . . . . . . 1 . . Builder 2 | . . . . 1 . . . . . . 1 . . Tunneler 4 | 4 . . . . . . . . . . . . . Hauler 7 | . 2 . . . . 2 . 1 . . 2 . . Recycler 3 | . . . . 1 . 1 . . . . 1 . . Minesweeper 1 | . . . . . . . . 1 . . . . . Mechanic 1 | . . . . . . 1 . . . . . . . Drone 2 | . . . . . . . . . . 2 . . . Turret 2 | . . . 2 . . . . . . . . . . Watcher 8 | . 2 . . . . 3 . . . . 3 . . Swarmer 23 | . 3 . 2 . . . 3 . . 5 10 . . Grunt 25 | . 10 2 . . . . 3 6 . . 4 . . Brawler 1 | . . . . . . 1 . . . . . . . Sentry 9 | . . . 1 3 . 2 . . . . 3 . . Hunter 9 | . . . . . . . . . . 4 5 . . Programmer 14 | . . . . . . 5 . . . . 9 . . Subdweller 2 | . . . 2 . . . . . . . . . . Decomposer 1 | . . . . . . . . 1 . . . . . Packrat 1 | . . . . . . . . 1 . . . . . Mutant 1 | . . . . . . . 1 . . . . . . Best Kill Streak 7 | 2 6 2 2 2 . 3 6 5 . 5 7 . . Combat Bots Only 6 | . 3 2 2 1 . 2 6 5 . 5 5 . . Max Kills in Single Turn 4 | 1 2 1 1 1 . 1 1 2 . 3 4 . . Gunslinging 1 | . 1 . . . . . . . . . . . . Exploded 4 | . . . . . . . . 2 . 3 4 . . Melee 1 | . . . . . . 1 1 1 . 1 1 . . Uniques/NPCs Destroyed . | . . . . . . . . . . . . . . Combat | -11 -10 -10 -10 -7 -7 -5 -5 -5 -5 -4 -4 -4 -4 -------- Run | Yrd Mat Min Sub Rec Scr Fac Upp Upp Zhi Pro Fac Arm Lab Hostile Shots Fired 931 | . 79 5 111 27 . 54 66 8 . 88 481 . 12 Missed 311 | . 19 2 44 13 . 14 19 2 . 27 167 . 4 Damage Taken 10133 | . 669 38 604 60 . 825 1020 80 . 924 5709 . 204 Core 1771 | . 76 15 77 8 . 163 187 . . 78 1041 . 126 Absorbed by Shields 357 | . . . . 38 . 114 . . . . 205 . . Redirected to Shielding 201 | . 15 . 36 . . . . . . . 150 . . Ignored by Resistances 111 | . . . . . . . . 29 . . 82 . . Regen/Repaired (Parts) 202 | . 32 . . . . 115 35 20 . . . . . Core Remaining (%) 62 | 100 . . . . 29 . . . . 57 . . . Volleys Fired 149 | 16 62 4 33 6 . . . 4 . 3 13 3 5 Largest 2 | 2 2 2 2 2 . . . 1 . 1 2 1 1 Hottest 160 | 40 115 115 135 160 . . . 40 . 40 138 40 40 Shots Fired 251 | 32 120 8 50 12 . . . 4 . 3 14 3 5 Gun 224 | 32 117 8 45 12 . . . . . . 2 3 5 Cannon . | . . . . . . . . . . . . . . Launcher 19 | . . . . . . . . 4 . 3 12 . . Special 8 | . 3 . 5 . . . . . . . . . . Kinetic 116 | 32 67 . . . . . . 4 . 3 2 3 5 Thermal 125 | . 53 8 50 12 . . . . . . 2 . . Explosive 10 | . . . . . . . . . . . 10 . . Electromagnetic . | . . . . . . . . . . . . . . Robot Hit Streak 18 | 4 7 3 14 18 . . . 9 . . 5 . 1 Robot Miss Streak 5 | 4 5 1 1 2 . . . . . 2 3 . 3 Penetration Max . | . . . . . . . . . . . . . . Secondary Targets 3 | . 2 . 1 . . . . . . . . . . Max Gunslinging Chain 1 | . 1 . 1 . . . . . . . . . . Shots Hit Robots 387 | 15 71 5 27 16 . 50 32 19 . 29 121 . 2 Core Hits 200 | 5 30 4 11 13 . 21 13 14 . 17 71 . 1 Critical Kills . | . . . . . . . . . . . . . . Critical Parts Destroyed 1 | . . . 1 . . . . . . . . . . Critical Strikes 36 | . 4 . 2 . . 8 3 2 . 4 13 . . Burn 5 | . 4 . 1 . . . . . . . . . . Destroy 1 | . . . 1 . . . . . . . . . . Sever 30 | . . . . . . 8 3 2 . 4 13 . . Melee Attacks 370 | . . . . 5 . 84 47 20 . 41 173 . . Impact . | . . . . . . . . . . . . . . Slashing 370 | . . . . 5 . 84 47 20 . 41 173 . . Piercing . | . . . . . . . . . . . . . . Sneak Attacks 23 | . . . . 1 . 11 . 6 . 1 4 . . Combat Hostiles 3 | . . . . . . 2 . . . 1 . . . Follow-up Attacks 85 | . . . . . . 20 11 4 . 9 41 . . Damage Inflicted 16050 | 215 965 96 480 603 . 2228 1271 1583 . 1556 7041 . 12 Guns 2029 | 211 960 71 480 279 . . . . . . 16 . 12 Cannons . | . . . . . . . . . . . . . . Explosions 3613 | . . . . . . . . 727 . 297 2589 . . Melee 10266 | . . . . 316 . 2198 1271 856 . 1259 4366 . . Ramming 142 | 4 5 25 . 8 . 30 . . . . 70 . . Kinetic 1805 | 211 475 . . . . . . 727 . 297 83 . 12 Thermal 1331 | . 485 71 480 279 . . . . . . 16 . . Explosive 2506 | . . . . . . . . . . . 2506 . . Electromagnetic . | . . . . . . . . . . . . . . Impact . | . . . . . . . . . . . . . . Slashing 10266 | . . . . 316 . 2198 1271 856 . 1259 4366 . . Piercing . | . . . . . . . . . . . . . . Highest Corruption 19 | . . . . . . 5 . . . . 19 19 19 Average Corruption 9 | . . . . . . 2 . . . . 10 19 11 Corruption Purged 8 | . . . . . . 8 . . . . . . . Corruption Blocked . | . . . . . . . . . . . . . . Effects 40 | . . . . . . 3 . . . . 34 1 2 Message Errors 10 | . . . . . . . . . . . 8 . 2 Matter Fused 6 | . . . . . . 2 . . . . 3 1 . Heat Flow Errors 5 | . . . . . . . . . . . 5 . . Energy Discharges 5 | . . . . . . 1 . . . . 4 . . Parts Rejected 3 | . . . . . . . . . . . 3 . . Parts Fused 1 | . . . . . . . . . . . 1 . . Data Loss (minor) 3 | . . . . . . . . . . . 3 . . Data Loss (major) 3 | . . . . . . . . . . . 3 . . Alerts 1 | . . . . . . . . . . . 1 . . Misdirections 3 | . . . . . . . . . . . 3 . . Overload Shots . | . . . . . . . . . . . . . . Overflow Damage 1067 | . . . . 11 . 152 47 412 . 129 316 . . Projectiles . | . . . . . . . . . . . . . . Explosions 37 | . . . . . . . . . . . 37 . . Melee 1030 | . . . . 11 . 152 47 412 . 129 279 . . Knockbacks 1 | . . 1 . . . . . . . . . . . Impact 1 | . . 1 . . . . . . . . . . . Kinetic . | . . . . . . . . . . . . . . Secondary . | . . . . . . . . . . . . . . Self-Inflicted Damage 14 | . . . . . . . . . . . 14 . . Shots 1 | . . . . . . . . . . . 1 . . Rammed 6 | . 1 4 . 1 . . . . . . . . . Targets Rammed 21 | 3 3 4 . 1 . 6 . . . . 4 . . Kicked 14 | 3 1 . . . . 6 . . . . 4 . . Crushed 1 | . 1 . . . . . . . . . . . . Highest Temperature 235 | . 234 234 130 198 . 235 . 6 . . 175 . . Average Temperature 70 | . 59 120 60 84 . 115 . 6 . . 82 . . Received Heat Transfer 1535 | . 315 18 366 12 . 48 182 45 . . 549 . . Effects 1 | . 1 . . . . . . . . . . . . Interference 1 | . 1 . . . . . . . . . . . . Siege Activations . | . . . . . . . . . . . . . . Robots Corrupted . | . . . . . . . . . . . . . . Combat Hostiles . | . . . . . . . . . . . . . . Parts Fried . | . . . . . . . . . . . . . . Impact Corruptions 1 | . . . . . . 1 . . . . . . . Robots Melted 1 | . . 1 . . . . . . . . . . . Combat Hostiles 1 | . . 1 . . . . . . . . . . . Parts Melted 5 | . 4 1 . . . . . . . . . . . Heat Transferred 3391 | . 1628 185 916 625 . . . . . . 37 . . Parts Sabotaged . | . . . . . . . . . . . . . . Parts Stolen . | . . . . . . . . . . . . . . Parts Stripped . | . . . . . . . . . . . . . . Power Chain Reactions . | . . . . . . . . . . . . . . Alert | -11 -10 -10 -10 -7 -7 -5 -5 -5 -5 -4 -4 -4 -4 ------- Run | Yrd Mat Min Sub Rec Scr Fac Upp Upp Zhi Pro Fac Arm Lab Peak Influence 879 | 20 189 198 . 175 . 185 . . . . 879 371 . Initial 371 | . 13 64 . . . . . . . . 168 371 . Average 107 | 8 67 65 . 44 . 64 . . . . 329 371 . Maximum Alert Level 3 | . . . . . . . . . . . 3 1 . Low Security (%) 86 | 100 100 100 . 100 . 100 . . . . 27 . . Level 1 8 | . . . . . . . . . . . 45 100 . Level 2 4 | . . . . . . . . . . . 23 . . Level 3 . | . . . . . . . . . . . 4 . . Level 4 . | . . . . . . . . . . . . . . Level 5 . | . . . . . . . . . . . . . . High Security . | . . . . . . . . . . . . . . Max Security . | . . . . . . . . . . . . . . Squads Dispatched 21 | . 4 . . . . 8 . . . . 9 . . Investigation 7 | . 3 . . . . 1 . . . . 3 . . Extermination 7 | . . . . . . 3 . . . . 4 . . Reinforcement 7 | . 1 . . . . 4 . . . . 2 . . Assault . | . . . . . . . . . . . . . . Garrison . | . . . . . . . . . . . . . . Intercept . | . . . . . . . . . . . . . . Searches Triggered . | . . . . . . . . . . . . . . Construction Impeded 1 | . . . . . . 1 . . . . . . . Haulers Reinforced 1 | . . . . . . 1 . . . . . . . Active Scanning Responses . | . . . . . . . . . . . . . . Cargo Convoy Interrupts 1 | . . . . . . . . . . . 1 . . Stealth | -11 -10 -10 -10 -7 -7 -5 -5 -5 -5 -4 -4 -4 -4 --------- Run | Yrd Mat Min Sub Rec Scr Fac Upp Upp Zhi Pro Fac Arm Lab Distress Signals 5 | . 2 . . . . . . . . . 3 . . Communications Jammed 124 | . . . . . . . . . . 1 123 . . Distress Signals 123 | . . . . . . . . . . . 123 . . Times Spotted 149 | . 19 5 10 4 . 16 17 6 . 12 59 . 1 Peak Tracking Total 9 | . 3 3 6 1 . 4 9 5 . 5 9 . 1 Tactical Retreats 8 | . 1 . . . . 1 1 . . 2 3 . . Traps | -11 -10 -10 -10 -7 -7 -5 -5 -5 -5 -4 -4 -4 -4 ------- Run | Yrd Mat Min Sub Rec Scr Fac Upp Upp Zhi Pro Fac Arm Lab Traps Triggered 2 | . . . . . . 1 . . . . 1 . . Indirectly . | . . . . . . . . . . . . . . Trap Hack Attempts . | . . . . . . . . . . . . . . Triggered . | . . . . . . . . . . . . . . Disarmed 2 | . 2 . . . . . . . . . . . . Reprogrammed . | . . . . . . . . . . . . . . Reused . | . . . . . . . . . . . . . . Traps Extracted . | . . . . . . . . . . . . . . Installed . | . . . . . . . . . . . . . . Triggered 3 | . . . . . . . 2 . . . 1 . . Machines | -11 -10 -10 -10 -7 -7 -5 -5 -5 -5 -4 -4 -4 -4 ---------- Run | Yrd Mat Min Sub Rec Scr Fac Upp Upp Zhi Pro Fac Arm Lab Machines Disabled 12 | . 2 . 1 . . . 1 . . 1 7 . . Max in Single Turn 3 | . 1 . 1 . . . 1 . . 1 3 . . Machines Repaired . | . . . . . . . . . . . . . . Machines Dismantled . | . . . . . . . . . . . . . . Machines Sabotaged . | . . . . . . . . . . . . . . Overloaded Fab Kills . | . . . . . . . . . . . . . . Hacking | -11 -10 -10 -10 -7 -7 -5 -5 -5 -5 -4 -4 -4 -4 --------- Run | Yrd Mat Min Sub Rec Scr Fac Upp Upp Zhi Pro Fac Arm Lab Machines Accessed 56 | . 10 . . 9 3 17 4 . 6 . 6 . 1 Terminals 28 | . 7 . . 5 . 11 1 . . . 4 . . Fabricators 2 | . . . . . . 1 . . . . 1 . . Repair Stations 3 | . 1 . . . . 2 . . . . . . . Recycling Units 8 | . 2 . . 4 . 1 . . . . 1 . . Scanalyzers 2 | . . . . . . 2 . . . . . . . Garrison Access . | . . . . . . . . . . . . . . Total Hacks 178 | . 38 . . 25 18 46 9 . 19 . 22 . 1 Successful 110 | . 24 . . 10 18 21 9 . 19 . 8 . 1 Failed 67 | . 13 . . 15 . 25 . . . . 14 . . Catastrophic 12 | . . . . 6 . 4 . . . . 2 . . Database Lockouts 1 | . 1 . . . . . . . . . . . . Manual 65 | . 25 . . 15 . 11 . . . . 13 . 1 Terminals 90 | . 28 . . 17 . 27 4 . . . 14 . . Fabricators 7 | . . . . . . 2 . . . . 5 . . Repair Stations 11 | . 3 . . . . 8 . . . . . . . Recycling Units 22 | . 7 . . 8 . 4 . . . . 3 . . Scanalyzers 5 | . . . . . . 5 . . . . . . . Garrison Access . | . . . . . . . . . . . . . . Terminal Hacks 65 | . 7 . . 2 18 5 9 . 19 . 4 . 1 Record 32 | . . . . . 17 . 7 . 7 . . . 1 Part Schematic 5 | . . . . 1 . . . . 4 . . . . Robot Analysis 7 | . 3 . . . . . . . 4 . . . . Prototype ID Bank 11 | . 2 . . 1 . 2 . . 4 . 2 . . Open Door 2 | . . . . . . . 2 . . . . . . Branch Access Points 1 | . . . . . . 1 . . . . . . . Recycling Unit Index 1 | . . . . . . 1 . . . . . . . Alert Level 1 | . . . . . . . . . . . 1 . . Locate Traps 1 | . 1 . . . . . . . . . . . . Disarm Traps 1 | . 1 . . . . . . . . . . . . Hauler Manifests 2 | . . . . . . 1 . . . . 1 . . Derelict Proto ID Bank 1 | . . . . . 1 . . . . . . . . Fabricator Hacks . | . . . . . . . . . . . . . . Repair Station Hacks 6 | . 2 . . . . 4 . . . . . . . Scan Component 4 | . 1 . . . . 3 . . . . . . . Repair 2 | . 1 . . . . 1 . . . . . . . Recycling Unit Hacks 7 | . 2 . . 3 . 1 . . . . 1 . . Report Inventory 4 | . 1 . . 1 . 1 . . . . 1 . . Retrieve Components 3 | . 1 . . 2 . . . . . . . . . Scanalyzer 3 | . . . . . . 3 . . . . . . . Insert Component 2 | . . . . . . 2 . . . . . . . Analyze 1 | . . . . . . 1 . . . . . . . Garrison Access Hacks . | . . . . . . . . . . . . . . Unauthorized Hacks 29 | . 13 . . 5 . 8 . . . . 3 . . Terminals 18 | . 9 . . 2 . 5 . . . . 2 . . Assimilate 1 | . . . . . . 1 . . . . . . . Botnet 7 | . 2 . . 2 . 2 . . . . 1 . . Disrupt 1 | . . . . . . . . . . . 1 . . Operators 1 | . 1 . . . . . . . . . . . . Skim 8 | . 6 . . . . 2 . . . . . . . Fabricators 1 | . . . . . . . . . . . 1 . . Haulers 1 | . . . . . . . . . . . 1 . . Repair Stations . | . . . . . . . . . . . . . . Recycling Units 10 | . 4 . . 3 . 3 . . . . . . . Reject 1 | . . . . . . 1 . . . . . . . Recyclers 2 | . 1 . . . . 1 . . . . . . . Mask 2 | . 1 . . . . 1 . . . . . . . Tunnel 5 | . 2 . . 3 . . . . . . . . . Scanalyzers . | . . . . . . . . . . . . . . Garrison Access . | . . . . . . . . . . . . . . Data Cores Recovered . | . . . . . . . . . . . . . . Used . | . . . . . . . . . . . . . . Hacking Detections 41 | . 10 . . 7 . 17 1 . . . 6 . . Full Trace Events 13 | . 2 . . 6 . 1 1 . . . 3 . . Feedback Events . | . . . . . . . . . . . . . . Feedback Blocked . | . . . . . . . . . . . . . . Robot Schematics Acquired . | . . . . . . . . . . . . . . Robots Built . | . . . . . . . . . . . . . . Authchips . | . . . . . . . . . . . . . . Time . | . . . . . . . . . . . . . . Total Robot Build Rating . | . . . . . . . . . . . . . . Part Schematics Acquired 6 | . . . . 1 . 1 . . 4 . . . . Parts Built . | . . . . . . . . . . . . . . Authchips . | . . . . . . . . . . . . . . Time . | . . . . . . . . . . . . . . Total Part Build Rating . | . . . . . . . . . . . . . . Parts Repaired 2 | . 1 . . . . 1 . . . . . . . Time 41 | . 16 . . . . 25 . . . . . . . Parts Recycled . | . . . . . . . . . . . . . . Recycled Matter . | . . . . . . . . . . . . . . Retrieved Matter . | . . . . . . . . . . . . . . Retrieved Components 6 | . 1 . . 5 . . . . . . . . . Parts Scanalyzed 2 | . . . . . . 2 . . . . . . . Part Schematics Acquired 1 | . . . . . . 1 . . . . . . . Parts Damaged . | . . . . . . . . . . . . . . Bothacking | -11 -10 -10 -10 -7 -7 -5 -5 -5 -5 -4 -4 -4 -4 ------------ Run | Yrd Mat Min Sub Rec Scr Fac Upp Upp Zhi Pro Fac Arm Lab Used RIF Installer . | . . . . . . . . . . . . . . Robots Hacked . | . . . . . . . . . . . . . . Non-combat . | . . . . . . . . . . . . . . Combat . | . . . . . . . . . . . . . . Robot Hacks Applied . | . . . . . . . . . . . . . . Relay Couplers Released 4 | . . . . . . 4 . . . . . . . Programmers 4 | . . . . . . 4 . . . . . . . Fabnet Peak Effective % . | . . . . . . . . . . . . . . Robots Rewired 9 | . . . . 9 . . . . . . . . . Allies Hacked 4 | . . . . . . 4 . . . . . . . Hacks Repelled . | . . . . . . . . . . . . . . Allies | -11 -10 -10 -10 -7 -7 -5 -5 -5 -5 -4 -4 -4 -4 -------- Run | Yrd Mat Min Sub Rec Scr Fac Upp Upp Zhi Pro Fac Arm Lab Total Allies 15 | . . 2 . 9 . 4 . . . . . . . Largest Group 9 | . . 2 2 9 9 9 . . . . . . . Highest-Rated Group 210 | . . 39 39 210 210 210 . . . . . . . Highest-Rated Ally 40 | . . 31 31 40 40 40 . . . . . . . Total Orders 2 | . . . . 2 . . . . . . . . . FOLLOW 1 | . . . . 1 . . . . . . . . . TUNNEL 1 | . . . . 1 . . . . . . . . . Ally Attacks 59 | . . 13 10 7 . 29 . . . . . . . Total Damage 1152 | . . 166 164 226 . 596 . . . . . . . Kills 9 | . . 3 1 1 . 4 . . . . . . . Allies Corrupted 1 | . . . . . . 1 . . . . . . . Allies Melted . | . . . . . . . . . . . . . . Intel | -11 -10 -10 -10 -7 -7 -5 -5 -5 -5 -4 -4 -4 -4 ------- Run | Yrd Mat Min Sub Rec Scr Fac Upp Upp Zhi Pro Fac Arm Lab Robot Analysis Total 7 | . 3 . . . . . . . 4 . . . . Derelict Logs Recovered 14 | . . 1 1 . 5 . 2 3 . 2 . . . Drone Launches . | . . . . . . . . . . . . . . Drone Recoveries . | . . . . . . . . . . . . . . Decoded 0b10 Intel 89 | . . . . . . . . . . . 87 2 . Items 89 | . . . . . . . . . . . 87 2 . Exploration | -11 -10 -10 -10 -7 -7 -5 -5 -5 -5 -4 -4 -4 -4 ------------- Run | Yrd Mat Min Sub Rec Scr Fac Upp Upp Zhi Pro Fac Arm Lab Turns Passed 23877 | 203 1471 962 983 2306 9567 2039 2062 1501 188 984 1535 35 41 Spaces Moved 11302 | 109 808 388 523 949 2655 1353 1549 1197 147 716 809 46 53 Core 105 | 2 . . . . . . . . . . 4 46 53 Treads 2978 | . 403 388 523 949 715 . . . . . . . . Legs 8219 | 107 405 . . . 1940 1353 1549 1197 147 716 805 . . Wheels . | . . . . . . . . . . . . . . Hover . | . . . . . . . . . . . . . . Flight . | . . . . . . . . . . . . . . Fastest Speed 50 | 50 120 160 160 160 120 120 120 120 120 120 50 50 50 Average Speed 190 | 118 139 160 160 220 357 129 127 120 120 120 122 50 50 Slowest Speed 1050 | 120 160 160 240 240 470 190 190 120 120 190 1050 50 50 Overloaded Moves . | . . . . . . . . . . . . . . Propulsion Burnouts . | . . . . . . . . . . . . . . Robots Hopped . | . . . . . . . . . . . . . . Cave-ins Triggered . | . . . . . . . . . . . . . . Teleports 1 | . . . . . . . . . . . . 1 . Exploration Rate (%) 62 | 7 94 89 26 97 92 33 98 95 61 84 17 4 76 Regions Visited 13 Branch Regions 10 Pre-discovered Areas 15 | . 3 1 . 3 . . 1 2 3 2 . . . Known Exits Taken 9 | . . 1 . 1 1 1 1 1 1 1 1 . . Unknown Exits Taken 4 | 1 1 . 1 . . . . . . . . 1 . Scrap Searched 26 | . . 1 11 . 5 . 4 3 . 2 . . . Spaces Dug 75 | . 3 . . . . 15 5 . . 16 36 . . Terrain Destroyed 203 | . 3 . . . . 15 5 40 . 52 88 . . Melee 40 | . . . . . . 15 5 . . 2 18 . . Projectile 3 | . 3 . . . . . . . . . . . . AOE 160 | . . . . . . . . 40 . 50 70 . . Terrain Rammed . | . . . . . . . . . . . . . . Walls Destroyed . | . . . . . . . . . . . . . . Machines Disabled . | . . . . . . . . . . . . . . Actions | -11 -10 -10 -10 -7 -7 -5 -5 -5 -5 -4 -4 -4 -4 --------- Run | Yrd Mat Min Sub Rec Scr Fac Upp Upp Zhi Pro Fac Arm Lab Total 13123 | 146 1017 719 615 1152 2733 1603 1622 1245 158 800 1193 57 63 Wait 759 | 6 110 322 3 24 12 81 21 6 . 26 148 . . Move 11289 | 108 807 387 522 948 2654 1352 1548 1196 146 715 808 45 53 Hop . | . . . . . . . . . . . . . . Pick Up 172 | 6 13 2 23 14 42 29 8 8 2 . 22 3 . Fast Attach 35 | 7 1 . 2 2 3 4 . 1 4 . 9 . 2 Attach 58 | . 4 . 7 . 3 16 3 . 1 3 18 2 1 Detach 14 | . . . . 2 2 2 . 1 1 . 4 1 1 Swap 125 | . 12 . 5 6 . 26 7 8 1 22 38 . . Drop 117 | . 5 . 20 14 17 27 5 9 3 2 11 3 1 Fire 149 | 16 62 4 33 6 . . . 4 . 3 13 3 5 Melee 247 | . . . . 5 . 54 29 12 . 29 118 . . Ram . | . . . . . . . . . . . . . . Kick 14 | 3 1 . . . . 6 . . . . 4 . . Crush 7 | . 2 4 . 1 . . . . . . . . . Escape Stasis . | . . . . . . . . . . . . . . Rewire 136 | . . . . 130 . 6 . . . . . . . Trap . | . . . . . . . . . . . . . . Miscellaneous 1 | . . . . . . . 1 . . . . . . Route ------- -11/Scrapyard -10/Materials (discovered 5 exits: [*Mat x2] / [*Min x2] / Sub) -10/Mines (discovered 3 exits: [*Mat x2] / *Sub) -10/Subcaves (discovered 2 exits: *Mat / *Rec) -7/Recycling (discovered 2 exits: *Fac / *Scr) -7/Scraptown (discovered 2 exits: *Fac x2) -5/Factory (discovered 4 exits: *Upp x2 / Ext x2) -5/Upper Caves -5/Upper Caves (discovered 2 exits: *Fac / *Zhi) -5/Zhirov -4/Proximity Caves -4/Factory (discovered 2 exits: Res / *Arm) -4/Armory -4/Lab History --------- Turn | Location | Event 2 | -11/Scrapyard | Met Revision 17 5 | -11/Scrapyard | Discovered new exit (range 15) 204 | -11/Scrapyard | Entered Materials 228 | -10/Materials | Discovered new exit (range 5) 284 | -10/Materials | Discovered new exit (range 15) 300 | -10/Materials | Build established: Mutant 528 | -10/Materials | Discovered new exit (range 16) 704 | -10/Materials | Discovered new exit (range 10) 1012 | -10/Materials | Central database locked down 1197 | -10/Materials | Identified exit to Subcaves 1247 | -10/Materials | Learned 4 Subcaves zone layouts 1336 | -10/Materials | Learned location of 1 exit from Recycling 1368 | -10/Materials | Learned Storage security intel 1412 | -10/Materials | Learned location of 1 exit from Recycling 1442 | -10/Materials | Repaired Particle Gun 1675 | -10/Materials | Entered Mines 1712 | -10/Mines | Discovered new exit (range 6) 1961 | -10/Mines | Discovered new exit (range 13) 2102 | -10/Mines | Deemed a non-threat by the Exiles lab entrance 2637 | -10/Mines | Entered Subcaves 2637 | -10/Subcaves | Accompanied by 2 allies 2638 | -10/Subcaves | Identified exit to Materials 2642 | -10/Subcaves | Led the pair of lost Derelicts to an unsafe place 2658 | -10/Subcaves | Learned 2 Materials zone layouts 3030 | -10/Subcaves | Discovered new exit (range 14) 3041 | -10/Subcaves | Core integrity fell below 50% 3217 | -10/Subcaves | Disturbed a concealed Subdweller 3423 | -10/Subcaves | Build established: Scavenger-Mutant 3620 | -10/Subcaves | Entered Recycling 3621 | -7/Recycling | Identified exit to Scraptown 3621 | -7/Recycling | Identified exit to Factory 3916 | -7/Recycling | Build established: Mutant 4275 | -7/Recycling | Build established: Commander-Mutant 4842 | -7/Recycling | Scanned before Scraplab entrance 5888 | -7/Recycling | Entered Scraplab 5926 | -7/Recycling | Entered Scraptown 5926 | -7/Scraptown | Accompanied by 9 allies 6068 | -7/Scraptown | Heard Great Nut preacher, LISTEN AND RECITE! 6460 | -7/Scraptown | Scanned Subdweller tech in exchange for log data 6465 | -7/Scraptown | Learned 12 Research zone layouts 6467 | -7/Scraptown | Learned Research non-interactive machine intel 6469 | -7/Scraptown | Learned location of 2 exits from Upper Caves 6474 | -7/Scraptown | Learned Factory terminal intel 6702 | -7/Scraptown | Discovered exit to Factory (range 5) 6890 | -7/Scraptown | Visited Red Mages 6955 | -7/Scraptown | Visited Fellowship of the Rings 7026 | -7/Scraptown | Visited Comm Corps 7127 | -7/Scraptown | Visited Cave Peace 7490 | -7/Scraptown | Visited IN-MT5's Study 7586 | -7/Scraptown | Visited Cyclists 7639 | -7/Scraptown | Visited Supply Room 7714 | -7/Scraptown | Visited UFD Registry 7714 | -7/Scraptown | Registered with UFD as "Phaseface" 7754 | -7/Scraptown | Entered Cyclist Reading Room 7912 | -7/Scraptown | Visited Science Guys 7998 | -7/Scraptown | Visited Observation Area 8077 | -7/Scraptown | Visited Chapter 10 8132 | -7/Scraptown | Visited Supply Room 8165 | -7/Scraptown | Visited Infowarlord's Domain 8197 | -7/Scraptown | Visited Curators Association 8224 | -7/Scraptown | Visited Scrap Suit Storage 8277 | -7/Scraptown | Visited LU-1G1's Boring Crew 8351 | -7/Scraptown | Visited Derelict Rescue Squad 9035 | -7/Scraptown | Found Exp. Sensor Array 9524 | -7/Scraptown | Found DRS Beacon 10894 | -7/Scraptown | Guru changed UFD alias to "Wrenchmachine" 13532 | -7/Scraptown | Found Scrap Suit 13571 | -7/Scraptown | Found Scrap Suit 15458 | -7/Scraptown | Discovered exit to Factory (range 5) 15493 | -7/Scraptown | Entered Factory 15493 | -5/Factory | Accompanied by 9 allies 15493 | -5/Factory | Evolved 10 slots: Propulsion x2, Utility x6, Weapon x2 15494 | -5/Factory | Identified exit to Extension 15495 | -5/Factory | Loaded intel: 27 terminal locations 15623 | -5/Factory | Discovered new exit (range 4) 15633 | -5/Factory | Identified exit to Upper Caves 15748 | -5/Factory | P-70 Sage assimilated allied Engineer 4b 15770 | -5/Factory | P-70 Sage assimilated allied Gladiator 4a 15803 | -5/Factory | Build established: Commander-Gladiator 16145 | -5/Factory | Lost 3 allies 16363 | -5/Factory | Allied Derelicts emerged from ambush trap array 16408 | -5/Factory | Build established: Gladiator 16741 | -5/Factory | Lost 3 allies 16953 | -5/Factory | Repaired Flexi-carbon Leg 17532 | -5/Factory | Entered Upper Caves 17533 | -5/Upper Caves | Identified exit to Upper Caves 17630 | -5/Upper Caves | Attacked by a delusional Derelict stockpiling parts 17756 | -5/Upper Caves | Learned Factory stockpile data 17856 | -5/Upper Caves | Learned Research stockpile data 18694 | -5/Upper Caves | Learned Armory trap positions 18697 | -5/Upper Caves | Activated DRS Beacon 18705 | -5/Upper Caves | Attracted the attention of an 0b10 base 18770 | -5/Upper Caves | Lost 3 parts (2u1w) 19088 | -5/Upper Caves | Attracted the attention of an 0b10 checkpoint 19594 | -5/Upper Caves | Entered another Upper Caves area 19595 | -5/Upper Caves | Identified exit to Factory 19609 | -5/Upper Caves | Learned location of 1 exit from Factory 20013 | -5/Upper Caves | Found Imp. Powered Armor 20517 | -5/Upper Caves | Discovered new exit (range 9) 20561 | -5/Upper Caves | Identified exit to Zhirov 21095 | -5/Upper Caves | Entered Zhirov 21095 | -5/Zhirov | Discovered new exit (range 3) 21098 | -5/Zhirov | Identified exit to Proximity Caves 21117 | -5/Zhirov | Met Zhirov 21140 | -5/Zhirov | Learned location of Quarantine (-3) 21140 | -5/Zhirov | Learned location of Command (-1) 21160 | -5/Zhirov | Zhirov requested help retrieving the SGEMP Prototype 21191 | -5/Zhirov | Found Alien Artifact 21191 | -5/Zhirov | Identified Integrated Dissipator 21191 | -5/Zhirov | Installed Integrated Dissipator, increased core heat dissipation (+20) 21238 | -5/Zhirov | Found Alien Artifact 21283 | -5/Zhirov | Entered Proximity Caves 21302 | -4/Proximity Caves | Spotter reported a threat 22061 | -4/Proximity Caves | Discovered exit to Factory (range 14) 22176 | -4/Proximity Caves | Lost 3 parts (1u2w) 22244 | -4/Proximity Caves | Learned location of Armory (-4) 22267 | -4/Proximity Caves | Entered Factory 22267 | -4/Factory | Evolved 2 slots: Propulsion x1, Utility x1 22268 | -4/Factory | Identified exit to Research 22269 | -4/Factory | Identified exit to Armory 23338 | -4/Factory | System corruption reached 10% 23541 | -4/Factory | Lost 4 parts (1n3u) 23545 | -4/Factory | Found Prototype Device 23545 | -4/Factory | Identified Adv. EM Disruption Field 23566 | -4/Factory | Found Adv. EM Disruption Field 23698 | -4/Factory | Cargo convoy interrupted 23718 | -4/Factory | Build established: Scavenger-Gladiator 23765 | -4/Factory | Core integrity fell below 50% 23800 | -4/Factory | Core integrity fell below 20% 23802 | -4/Factory | Entered Armory 23803 | -4/Armory | Loaded intel: 48 trap records 23828 | -4/Armory | Lost 20 parts (1p7n6u6w) 23836 | -4/Armory | Identified Transdimensional Reconstructor 23836 | -4/Armory | Warped through subspace to slip node 23836 | -4/Armory | Discovered new exit (range 1) 23837 | -4/Armory | Entered Lab 23837 | -4/Lab | Discovered exit to Research (range 9) 23843 | -4/Lab | Unable to decrypt terminal 23843 | -4/Lab | Opened the door to a hidden lab 23844 | -4/Lab | Gained access to the hidden lab's interior 23846 | -4/Lab | Unable to decrypt terminal 23849 | -4/Lab | Found Alien Artifact 23849 | -4/Lab | Identified Core Reset Matrix 23849 | -4/Lab | Used Core Reset Matrix 23851 | -4/Lab | Detected by scanners 23853 | -4/Lab | Sensed 3 artifacts in vicinity 23864 | -4/Lab | Found Prototype Energy Cannon 23864 | -4/Lab | Identified Potential Cannon 23869 | -4/Lab | Confronted by A5 23878 | -4/Lab | Destroyed by A5 with Heavy Tesla Rifle Last Messages --------------- ZKVh6SaMWWONbFv6gj4M4mb 23849_ Acquired Alien Artifact. 23849_ Identified Core Reset Matrix. 23849_ Wiping memory... 23851_ CORE RESET Scanners sweep the area. 23851_ A0_COM: INTRUDER ALERT. 23853_ Sensed 3 artifacts in vicinity. 23864_ Acquired Prototype Energy Cannon. 23864_ Identified Potential Cannon. 23865_ Dropped Hyp. Railgun. 23868_ Machine disabled. 23869_ A5: "Hey, you're not supposed to be here!" 23870_ I|3VR0AIWM3BS=P%N U ZKZ0V 23871_ HV Slug penetrates Machine. 23871_ Machine disabled. 23873_ HV Slug penetrates A5. 23873_ HV Slug penetrates Machine. 23877_ HV Slug penetrates A5. 23877_ HV Slug penetrates Machine. Map ----- +----------------------------------------------------+ | | | | | | | | | | | | | | | | | ????????????????????????????? | | ????????????????????????????? | | ????????????????###########?? | | ????????????????# """"""" #?? | | ???????######???#"""""""""#?? | | ?#######""""#####"!""!""!"### | | ?#""" """""" """"""""""" | | ?#" | | ?#"" " | | ?#"! " | | ?#"" " " | | ?#"! """ " | | ?#"" "##### " | | ?#"[ "#???#"" " | | ?#"" ""#???#"" " | | ?#"] #???#"" | | ?#"" "##### | | ?#" @ """"" | | ?#" "" | | ?# | | ?#" | | ?# | | ?#" """""""" | | ?#"" ""#####" | | ?#" p"??????" | | ?#"" ???????" | | ?#""A ???????? | | ???" ????????????? | | ???? ????????????? | | ???? ??????????????? | | ???? ????????????????? | | ????? ???????????????????? | | ????? ?????????????????????? | | ????????????????????????????? | | ????????????????????????????? | | ????????????????????????????? | | ????????????????????????????? | | ????????????????????????????? | | ????????????????????????????? | | ????????????????????????????? | | ????????????????????????????? | | ????????????????????????????? | +----------------------------------------------------+ Best States ------------- Heat Dissipation 101 Energy Generation 25 Energy Capacity 340 Matter Stores 300 Matter Capacity 300 Sight Range 16 Robot Scan Range 20 Terrain Scan Range 24 Terrain Scan Density 210 ECM Strength 2 Jamming Range 16 Armor Coverage 400 Resistance: TH 25 Resistance: EM 50 Propulsion Shielding 33 Weapon Shielding 90 Melee Speed Boost 40 Evasion (%) 65 Melee Accuracy 16 Target Analysis 6 Recoil Reduction 2 Force Boost 20 Authchip Count 1 Item Schematics ----------------- None Robot Schematics ------------------ None Fabricated ------------ Nothing Alien Tech Used ----------------- Integrated Dissipator Transdimensional Reconstructor Core Reset Matrix Achievements -------------- Anyone Home? Packrat Challenges ------------ None Game ------ Seed ActiveGodClaw Manual? 0 Play Time 04:57:36 Cumulative 205.9 hours Start 2025.01.17 @ 17:44:06 End 2025.01.18 @ 18:24:53 Sessions 17 Manual Loads 0 Difficulty Rogue Special Mode None Game No. 65 Rogue 65 Adventurer 0 Explorer 0 Win Type - Total 3 Types 2/0/1/0/0/0/0/0/0 Lore% 67 Gallery% 74 Achievement% 64 Wizard Run 0 Options --------- Layout 0 ASCII 0 Keyboard 1 Movement Arrows Keybinds 1 Fullscreen 2 Font 36/Terminus++ Map View 76x50 Zoom Use 0% Tactical HUD 1 Map Filters NONE Filters NONE Steam 1 RUN: 4c7b12bb-c155-4a6f-babf-54da8e8868cb